bitfinex/quotes_SOLUSD_20241223
["timestamp","ask_amount","ask_price","bid_price","bid_amount"]
[1734916915356,20.0,177.44,177.37,45.36299866]
[1734916915852,45.36299866,177.49,177.41,45.36299866]
[1734916916025,52.98789866,177.53,177.43,45.36299866]
[1734916916352,52.98789866,177.53,177.45,45.36299866]
[1734916917142,7.6249,177.53,177.45,45.36299866]
[1734916917343,7.6249,177.53,177.47,45.36299866]
[1734916918632,7.6249,177.53,177.45,45.36299866]
[1734916918827,7.6249,177.53,177.37,0.84505402]
[1734916919032,7.6249,177.53,177.47,45.36299866]
[1734916919234,0.6889403,177.54,177.52,0.12549]
[1734916919434,1.6096,177.65,177.52,0.12549]
[1734916919435,1.6096,177.65,177.53,45.36299866]
[1734916919751,1.6096,177.65,177.58,45.36299866]
[1734916919954,1.6096,177.65,177.56,45.36299866]
[1734916920157,45.36299866,177.64,177.54,45.36299866]
[1734916920444,45.36299866,177.62,177.52,45.36299866]
[1734916920624,45.36299866,177.6,177.5,45.36299866]
[1734916920826,45.36299866,177.56,177.48,45.36299866]
[1734916921464,45.36299866,177.58,177.5,45.36299866]
[1734916922334,20.0,177.61,177.52,45.36299866]
[1734916922535,45.36299866,177.62,177.54,45.36299866]
[1734916922831,9.8516,177.64,177.54,45.36299866]
[1734916922832,45.36299866,177.64,177.54,45.36299866]
[1734916923048,45.36299866,177.64,177.46,0.84461382]
[1734916923049,1.6096,177.65,177.58,45.36299866]
[1734916923345,1.6096,177.65,177.6,45.36299866]
[1734916923542,45.36299866,177.7,177.62,45.36299866]
[1734916924052,54.24013896,177.72,177.64,45.36299866]
[1734916924557,8.8771403,177.72,177.66,45.36299866]
[1734916924850,2.3229403,177.72,177.66,45.36299866]
[1734916925144,2.3229403,177.72,177.59,0.84407171]
[1734916925145,0.6889403,177.72,177.68,45.36299866]
[1734916925669,0.6889403,177.72,177.7,45.36299866]
[1734916926035,0.6889403,177.72,177.71,0.84380668]
[1734916926745,1.5636,177.81,177.7,45.36299866]
[1734916926951,1.5636,177.81,177.61,0.84376855]
[1734916926952,45.36299866,177.76,177.68,45.36299866]
[1734916927147,45.36299866,177.74,177.66,45.36299866]
[1734916927369,20.0,177.71,177.66,45.36299866]
[1734916927531,20.0,177.69,177.64,45.36299866]
[1734916928348,20.0,177.69,177.62,45.36299866]
[1734916929349,45.36299866,177.76,177.67,45.36299866]
[1734916929745,45.36299866,177.78,177.69,45.36299866]
[1734916929949,1.5636,177.81,177.73,45.36299866]
[1734916930132,45.90582436,177.86,177.77,45.36299866]
[1734916930438,0.5428257,177.86,177.81,45.36299866]
[1734916930639,0.5428257,177.86,177.62,5.4469]
[1734916930640,45.90582436,177.86,177.79,45.36299866]
[1734916930866,45.90582436,177.86,177.77,45.36299866]
[1734916931049,0.5428257,177.86,177.79,45.36299866]
[1734916931249,0.5428257,177.86,177.81,45.36299866]
[1734916931840,0.5428257,177.86,177.79,45.36299866]
[1734916932632,0.5428257,177.86,177.75,45.36299866]
[1734916932633,45.36299866,177.84,177.75,45.36299866]
[1734916932854,0.5428257,177.86,177.78,45.36299866]
[1734916933049,0.5428257,177.86,177.8,45.36299866]
[1734916933559,20.0,177.83,177.76,45.36299866]
[1734916933937,20.0,177.83,177.78,45.36299866]
[1734916934140,0.5428257,177.86,177.8,45.36299866]
[1734916934345,0.5428257,177.86,177.82,45.36299866]
[1734916935044,0.5428257,177.86,177.8,45.36299866]
[1734916935464,0.5428257,177.86,177.82,45.36299866]
[1734916936060,0.5428257,177.86,177.74,0.84328049]
[1734916936061,45.90582436,177.86,177.78,45.36299866]
[1734916936461,0.5428257,177.86,177.8,45.36299866]
[1734916936770,0.5428257,177.86,177.82,45.36299866]
[1734916936960,0.5428257,177.86,177.8,45.36299866]
[1734916937337,20.0,177.83,177.78,45.36299866]
[1734916937537,20.0,177.81,177.76,45.36299866]
[1734916937855,0.5428257,177.86,177.78,45.36299866]
[1734916938172,20.0,177.84,177.8,45.36299866]
[1734916938337,20.0,177.83,177.78,45.36299866]
[1734916938537,20.0,177.83,177.75,45.36299866]
[1734916938740,20.0,177.77,177.71,45.36299866]
[1734916938945,45.36299866,177.78,177.69,45.36299866]
[1734916939455,20.0,177.75,177.69,45.36299866]
[1734916939632,20.0,177.71,177.65,45.36299866]
[1734916939836,45.36299866,177.72,177.65,45.36299866]
[1734916940072,45.36299866,177.72,177.63,45.36299866]
[1734916940073,20.0,177.69,177.63,45.36299866]
[1734916940360,20.0,177.67,177.61,45.36299866]
[1734916941069,20.0,177.67,177.59,45.36299866]
[1734916941242,20.0,177.67,177.55,0.84432106]
[1734916941243,20.0,177.67,177.61,45.36299866]
[1734916941748,20.0,177.65,177.57,45.36299866]
[1734916941950,45.36299866,177.63,177.55,45.36299866]
[1734916942147,71.44179866,177.67,177.59,45.36299866]
[1734916942353,19.6929,177.73,177.59,45.36299866]
[1734916942354,45.36299866,177.73,177.63,45.36299866]
[1734916942546,20.0,177.7,177.65,45.36299866]
[1734916942740,20.0,177.7,177.63,45.36299866]
[1734916943142,51.44179866,177.75,177.67,45.36299866]
[1734916943343,1.6055,177.76,177.68,0.84396066]
[1734916943562,52.96809866,177.83,177.73,45.36299866]
[1734916943765,45.36299866,177.79,177.71,45.36299866]
[1734916944445,45.36299866,177.75,177.67,45.36299866]
[1734916944865,45.36299866,177.75,177.65,45.36299866]
[1734916945080,45.36299866,177.73,177.65,45.36299866]
[1734916945243,45.36299866,177.77,177.69,45.36299866]
[1734916945569,55.20619866,177.79,177.71,45.36299866]
[1734916945769,20.0,177.76,177.69,45.36299866]
[1734916946556,20.0,177.72,177.65,45.36299866]
[1734916946750,20.0,177.7,177.62,45.36299866]
[1734916947365,45.36299866,177.77,177.68,45.36299866]
[1734916947554,45.36299866,177.79,177.7,45.36299866]
[1734916947861,52.96809866,177.83,177.74,45.36299866]
[1734916948061,1.5263,177.83,177.78,45.36299866]
[1734916948262,65.36299866,177.87,177.8,45.36299866]
[1734916948263,20.0,177.87,177.8,45.36299866]
[1734916948446,65.36299866,177.87,177.8,45.36299866]
[1734916948654,45.36299866,177.85,177.77,45.36299866]
[1734916948856,45.36299866,177.83,177.73,45.36299866]
[1734916949443,10.3822257,177.86,177.66,23.776884]
[1734916949444,45.36299866,177.85,177.77,45.36299866]
[1734916949660,0.5428257,177.86,177.77,45.36299866]
[1734916950044,55.20269866,177.85,177.75,45.36299866]
[1734916950247,45.36299866,177.83,177.75,45.36299866]
[1734916950560,45.36299866,177.83,177.73,45.36299866]
[1734916950967,20.0,177.8,177.73,45.36299866]
[1734916951771,20.0,177.79,177.73,45.36299866]
[1734916951972,20.0,177.78,177.71,45.36299866]
[1734916952168,45.36299866,177.83,177.73,45.36299866]
[1734916952374,45.36299866,177.85,177.77,45.36299866]
[1734916952547,10.3824257,177.86,177.77,45.36299866]
[1734916953048,10.3824257,177.86,177.79,45.36299866]
[1734916953374,0.5428257,177.86,177.79,45.36299866]
[1734916954091,45.36299866,177.83,177.75,45.36299866]
[1734916954574,20.0,177.82,177.75,45.36299866]
[1734916955184,29.8415,177.82,177.75,45.36299866]
[1734916955356,20.0,177.76,177.71,45.36299866]
[1734916955969,20.0,177.76,177.65,45.36299866]
[1734916955970,20.0,177.7,177.65,45.36299866]
[1734916956350,20.0,177.68,177.61,45.36299866]
[1734916956552,20.0,177.68,177.63,45.36299866]
[1734916956959,1.6073,177.76,177.68,0.12549]
[1734916957156,20.0,177.74,177.71,45.36299866]
[1734916957367,20.0,177.74,177.69,45.36299866]
[1734916957558,20.0,177.74,177.67,45.36299866]
[1734916957559,20.0,177.72,177.67,45.36299866]
[1734916957948,20.0,177.72,177.65,45.36299866]
[1734916958151,20.0,177.7,177.63,45.36299866]
[1734916958370,20.0,177.68,177.63,45.36299866]
[1734916958576,20.0,177.7,177.65,45.36299866]
[1734916959473,20.0,177.68,177.63,45.36299866]
[1734916959679,29.8481,177.7,177.63,45.36299866]
[1734916960078,20.0,177.68,177.63,45.36299866]
[1734916960583,20.0,177.67,177.63,45.36299866]
[1734916961059,20.0,177.67,177.61,45.36299866]
[1734916961261,20.0,177.66,177.61,45.36299866]
[1734916961453,1.6543,177.63,177.57,45.36299866]
[1734916961652,1.6543,177.63,177.55,45.36299866]
[1734916961653,20.0,177.59,177.55,45.36299866]
[1734916962267,20.0,177.59,177.53,45.36299866]
[1734916962673,20.0,177.58,177.53,45.36299866]
[1734916963089,20.0,177.58,177.51,45.36299866]
[1734916963255,65.36299866,177.59,177.51,45.36299866]
[1734916963460,75.21719866,177.59,177.51,45.36299866]
[1734916963964,20.0,177.54,177.47,45.36299866]
[1734916964166,20.0,177.5,177.45,45.36299866]
[1734916964685,1.591,177.51,177.49,45.36299866]
[1734916964861,1.5296,177.57,177.5,0.9703414]
[1734916965191,6.1696,177.62,177.55,45.36299866]
[1734916965963,45.36299866,177.56,177.48,45.36299866]
[1734916966163,45.36299866,177.6,177.52,45.36299866]
[1734916966380,9.853,177.61,177.52,45.36299866]
[1734916966593,45.36299866,177.6,177.52,45.36299866]
[1734916966893,20.0,177.57,177.52,45.36299866]
[1734916967062,6.1696,177.62,177.56,45.36299866]
[1734916967667,61.38519866,177.62,177.54,45.36299866]
[1734916968271,61.38519866,177.62,177.52,45.36299866]
[1734916968475,20.0,177.59,177.52,45.36299866]
[1734916968677,20.0,177.59,177.54,45.36299866]
[1734916968893,6.1696,177.62,177.54,45.36299866]
[1734916969071,20.0,177.61,177.56,45.36299866]
[1734916969593,20.0,177.63,177.56,45.36299866]
[1734916970114,1.5296,177.64,177.56,45.36299866]
[1734916970973,9.8519,177.63,177.54,45.36299866]
[1734916971166,9.8519,177.63,177.56,45.36299866]
[1734916971372,20.0,177.6,177.56,45.36299866]
[1734916971688,20.0,177.6,177.54,45.36299866]
[1734916971870,20.0,177.59,177.52,45.36299866]
[1734916972396,20.0,177.57,177.5,45.36299866]
[1734916972707,6.0224,177.58,177.52,45.36299866]
[1734916973199,20.0,177.55,177.52,45.36299866]
[1734916973400,20.0,177.55,177.5,45.36299866]
[1734916974076,20.0,177.55,177.52,45.36299866]
[1734916974392,6.0224,177.58,177.52,45.36299866]
[1734916974808,20.0,177.58,177.52,45.36299866]
[1734916975005,46.89259866,177.64,177.56,45.36299866]
[1734916975380,1.5296,177.64,177.6,45.36299866]
[1734916975873,1.5296,177.64,177.58,45.36299866]
[1734916976280,9.8519,177.63,177.58,45.36299866]
[1734916977781,9.8519,177.63,177.56,45.36299866]
[1734916978381,1.5296,177.64,177.54,0.84443066]
[1734916978382,1.5296,177.64,177.6,45.36299866]
[1734916979086,6.4864,177.7,177.63,23.776884]
[1734916979280,1.5888,177.71,177.63,23.776884]
[1734916979281,1.5888,177.71,177.67,45.36299866]
[1734916979482,51.84939866,177.76,177.67,45.36299866]
[1734916979483,6.4864,177.76,177.69,45.36299866]
[1734916979703,6.4864,177.76,177.72,45.36299866]
[1734916980007,1.5888,177.78,177.73,0.84369325]
[1734916980196,1.5888,177.78,177.74,69.26537266]
[1734916980380,9.8409,177.83,177.76,45.36299866]
[1734916980580,45.36299866,177.82,177.65,23.776884]
[1734916980896,45.36299866,177.78,177.7,45.36299866]
[1734916981603,20.0,177.75,177.7,45.36299866]
[1734916981822,20.0,177.75,177.68,45.36299866]
[1734916982006,45.36299866,177.76,177.66,45.36299866]
[1734916982007,21.5309,177.73,177.66,45.36299866]
[1734916982313,1.5309,177.73,177.68,45.36299866]
[1734916982523,1.5309,177.73,177.7,45.36299866]
[1734916983204,1.5309,177.73,177.68,45.36299866]
[1734916983403,1.5309,177.73,177.55,2.28859477]
[1734916983404,61.44759866,177.72,177.64,45.36299866]
[1734916983604,20.0,177.69,177.64,45.36299866]
[1734916983822,20.0,177.69,177.62,45.36299866]
[1734916984001,20.0,177.67,177.6,45.36299866]
[1734916984201,20.0,177.67,177.64,45.36299866]
[1734916984416,61.44759866,177.72,177.64,45.36299866]
[1734916984716,6.2377,177.72,177.68,45.36299866]
[1734916984917,6.2377,177.72,177.66,45.36299866]
[1734916985627,6.2377,177.72,177.68,45.36299866]
[1734916985798,6.2377,177.72,177.66,45.36299866]
[1734916986003,20.0,177.69,177.66,45.36299866]
[1734916986719,6.2377,177.72,177.66,45.36299866]
[1734916986924,6.2377,177.72,177.61,0.84412803]
[1734916986925,6.3542,177.77,177.7,45.36299866]
[1734916987122,1.649,177.79,177.75,45.36299866]
[1734916987319,1.649,177.79,177.77,45.36299866]
[1734916987506,6.3542,177.83,177.77,45.36299866]
[1734916987901,6.3542,177.83,177.79,45.36299866]
[1734916988097,1.649,177.85,177.79,45.36299866]
[1734916988301,1.649,177.85,177.83,45.36299866]
[1734916988505,0.5428257,177.86,177.83,45.36299866]
[1734916988702,0.5428257,177.86,177.85,45.36299866]
[1734916988902,0.5428257,177.86,177.85,50.08848866]
[1734916989531,0.1796027,177.86,177.85,50.08848866]
[1734916989930,0.1796027,177.86,177.85,49.96299866]
[1734916990231,0.1796027,177.86,177.85,73.86537266]
[1734916990816,0.1796027,177.86,177.85,50.08848866]
[1734916991134,0.1796027,177.86,177.85,45.36299866]
[1734916991902,20.0,177.85,177.81,45.36299866]
[1734916992209,20.0,177.85,177.73,5.44317012]
[1734916992409,67.01389866,177.85,177.73,5.44317012]
[1734916992615,20.0,177.82,177.76,45.36299866]
[1734916992817,20.0,177.81,177.78,45.36299866]
[1734916993621,47.01389866,177.85,177.73,4.6]
[1734916993622,1.6509,177.85,177.8,45.36299866]
[1734916993944,0.1796027,177.86,177.84,45.36299866]
[1734916994148,0.1796027,177.86,177.85,0.84308226]
[1734916994838,0.1796027,177.86,177.84,45.36299866]
[1734916995944,0.1796027,177.86,177.85,0.12549]
[1734916996113,20.0,177.88,177.87,23.902374]
[1734916996427,20.0,177.88,177.87,74.42855316]
[1734916998011,0.45860036,177.88,177.87,74.42855316]
[1734916998418,0.45860036,177.88,177.87,50.52617916]
[1734916999115,0.45860036,177.88,177.87,50.65166916]
[1734916999911,0.45860036,177.88,177.87,74.42855316]
[1734917000318,0.33320036,177.88,177.87,74.42855316]
[1734917000521,0.6902667,177.94,177.91,0.12549]
[1734917000756,0.1902667,177.94,177.93,45.48848866]
[1734917001430,9.8274,178.08,177.95,3.9301306]
[1734917001615,1.5354,178.09,178.04,45.36299866]
[1734917002349,55.18999866,178.08,178.0,45.36299866]
[1734917002555,45.36299866,178.04,177.96,45.36299866]
[1734917003048,45.36299866,178.02,177.94,45.36299866]
[1734917003215,45.36299866,177.98,177.9,45.36299866]
[1734917003412,20.0,177.95,177.9,45.36299866]
[1734917003619,20.0,177.96,177.9,45.36299866]
[1734917004049,20.0,177.96,177.92,45.36299866]
[1734917004252,20.0,177.96,177.94,45.36299866]
[1734917004550,20.0,177.96,177.92,49.29312926]
[1734917004760,1.5354,178.01,177.94,45.36299866]
[1734917004912,1.5354,178.01,177.93,0.84282397]
[1734917004913,1.5354,178.01,177.96,45.36299866]
[1734917005116,9.8314,178.0,177.96,45.36299866]
[1734917005532,9.8314,178.0,177.94,45.36299866]
[1734917005741,55.19439866,178.0,177.9,45.36299866]
[1734917005930,20.0,177.95,177.9,45.36299866]
[1734917006663,20.0,177.93,177.88,45.36299866]
[1734917007518,29.8357,177.93,177.86,45.36299866]
[1734917007823,6.0118,177.89,177.84,45.36299866]
[1734917008118,20.0,177.86,177.82,45.36299866]
[1734917008559,20.0,177.85,177.78,45.36299866]
[1734917009035,20.0,177.83,177.78,45.36299866]
[1734917009538,20.0,177.82,177.78,45.36299866]
[1734917009716,29.8414,177.82,177.76,45.36299866]
[1734917009915,20.0,177.77,177.7,45.36299866]
[1734917010222,20.0,177.75,177.7,45.36299866]
[1734917010543,20.0,177.73,177.68,45.36299866]
[1734917010919,20.0,177.73,177.7,45.36299866]
[1734917011119,20.0,177.73,177.68,45.36299866]
[1734917011633,29.8469,177.72,177.68,45.36299866]
[1734917012041,20.0,177.71,177.66,45.36299866]
[1734917012240,20.0,177.69,177.66,45.36299866]
[1734917012555,20.0,177.69,177.64,45.36299866]
[1734917012853,20.0,177.69,177.62,45.36299866]
[1734917013360,20.0,177.66,177.62,45.36299866]
[1734917013861,8.061,177.76,177.64,49.29312926]
[1734917014157,8.061,177.76,177.71,45.36299866]
[1734917014353,8.061,177.76,177.69,45.36299866]
[1734917014749,8.061,177.76,177.71,45.36299866]
[1734917015736,1.6296,177.76,177.75,45.36299866]
[1734917015937,17.5834,177.83,177.75,45.36299866]
[1734917016263,17.5834,177.83,177.77,45.36299866]
[1734917016264,7.7424,177.83,177.77,45.36299866]
[1734917016561,7.7424,177.83,177.79,45.36299866]
[1734917016730,7.7424,177.83,177.81,45.36299866]
[1734917016933,1.5121,177.83,177.81,45.36299866]
[1734917017151,51.53559866,177.9,177.81,49.29312926]
[1734917017373,6.1726,177.9,177.83,45.36299866]
[1734917017555,6.1726,177.9,177.85,45.36299866]
[1734917018534,9.8375,177.89,177.83,45.36299866]
[1734917020552,1.6475,177.91,177.73,4.89879798]
[1734917020553,1.6475,177.91,177.85,45.36299866]
[1734917020937,55.19989866,177.9,177.83,45.36299866]
[1734917021450,55.19989866,177.9,177.81,49.29312926]
[1734917021648,20.0,177.87,177.81,49.29312926]
[1734917022371,20.0,177.87,177.83,45.36299866]
[1734917023073,1.6475,177.91,177.85,49.29312926]
[1734917023319,1.664,177.99,177.9,45.36299866]
[1734917023447,1.664,177.99,177.93,45.36299866]
[1734917024475,11.4961,177.99,177.91,45.36299866]
[1734917024852,45.36299866,177.98,177.91,45.36299866]
[1734917025048,11.4961,177.99,177.91,45.36299866]
[1734917025377,1.664,177.99,177.93,45.36299866]
[1734917025680,1.664,177.99,177.95,45.36299866]
[1734917026686,1.664,177.99,177.93,45.36299866]
[1734917026687,21.664,177.99,177.93,45.36299866]
[1734917026980,6.1541,178.02,177.97,45.36299866]
[1734917027186,1.5501,178.06,178.01,45.36299866]
[1734917027485,1.5501,178.06,178.03,45.36299866]
[1734917028154,1.5501,178.06,178.01,45.36299866]
[1734917029790,20.0,178.05,178.01,45.36299866]
[1734917030163,1.5501,178.06,178.01,45.36299866]
[1734917030359,1.5501,178.06,178.03,45.36299866]
[1734917030657,47.60016536,178.12,178.05,45.36299866]
[1734917030869,2.2371667,178.12,178.07,45.36299866]
[1734917031296,2.2371667,178.12,178.05,45.36299866]
[1734917031797,9.8253,178.11,178.05,45.36299866]
[1734917032095,9.8253,178.11,178.03,45.36299866]
[1734917032395,45.48848866,178.1,178.03,45.36299866]
[1734917032596,20.0,178.07,178.01,45.36299866]
[1734917033157,0.12549,178.07,177.99,45.36299866]
[1734917034384,20.0,178.03,177.99,45.36299866]
[1734917035187,20.0,177.99,177.93,45.36299866]
[1734917035577,20.0,177.98,177.93,45.36299866]
[1734917035891,20.0,177.98,177.91,45.36299866]
[1734917036187,45.36299866,177.95,177.85,45.36299866]
[1734917036489,20.0,177.9,177.85,45.36299866]
[1734917036785,1.5305,177.89,177.8,46.20592714]
[1734917036989,20.0,177.85,177.8,45.36299866]
[1734917037684,20.0,177.86,177.8,45.36299866]
[1734917038191,20.0,177.85,177.8,45.36299866]
[1734917038392,20.0,177.84,177.8,45.36299866]
[1734917039197,9.8403,177.84,177.78,45.36299866]
[1734917039579,20.0,177.81,177.74,45.36299866]
[1734917040190,20.0,177.79,177.74,45.36299866]
[1734917040692,20.0,177.78,177.74,45.36299866]
[1734917040879,45.36299866,177.84,177.76,45.36299866]
[1734917041079,9.84,177.85,177.76,45.36299866]
[1734917041080,20.0,177.82,177.76,45.36299866]
[1734917041694,20.0,177.81,177.76,45.36299866]
[1734917042272,20.0,177.79,177.76,45.36299866]
[1734917042472,20.0,177.79,177.74,45.36299866]
[1734917043797,21.593,177.76,177.7,45.36299866]
[1734917043996,1.593,177.76,177.72,45.36299866]
[1734917044303,1.593,177.76,177.63,0.12549]
[1734917044494,1.593,177.76,177.71,45.36299866]
[1734917044798,20.0,177.74,177.67,45.36299866]
[1734917044987,20.0,177.71,177.65,45.36299866]
[1734917045600,1.593,177.76,177.57,5.14411027]
[1734917045601,20.0,177.69,177.63,45.36299866]
[1734917045778,29.8488,177.69,177.63,45.36299866]
[1734917045985,20.0,177.67,177.61,45.36299866]
[1734917046181,20.0,177.65,177.59,45.36299866]
[1734917046873,45.36299866,177.61,177.52,45.36299866]
[1734917047073,45.36299866,177.59,177.52,50.50770808]
[1734917047475,45.36299866,177.59,177.52,49.66299866]
[1734917047918,9.8547,177.58,177.52,49.66299866]
[1734917048215,20.0,177.54,177.5,0.6902667]
[1734917052182,19.7053,177.62,177.5,0.6902667]
[1734917052183,45.36299866,177.62,177.53,45.36299866]
[1734917052384,45.36299866,177.62,177.55,45.36299866]
[1734917052684,9.8523,177.63,177.55,45.36299866]
[1734917052885,55.21529866,177.63,177.55,45.36299866]
[1734917053291,55.21529866,177.63,177.56,45.36299866]
[1734917054107,55.21529866,177.63,177.55,45.36299866]
[1734917054401,45.36299866,177.62,177.55,45.36299866]
[1734917054609,45.36299866,177.61,177.54,45.36299866]
[1734917054990,45.36299866,177.62,177.55,45.36299866]
[1734917055189,55.21529866,177.63,177.55,45.36299866]
[1734917055489,9.8523,177.63,177.57,45.36299866]
[1734917055702,53.22789866,177.64,177.62,45.36299866]
[1734917055703,1.5645,177.64,177.62,45.36299866]
[1734917055899,1.5645,177.64,177.63,45.36299866]
[1734917056083,1.5645,177.64,177.61,45.36299866]
[1734917056291,1.5645,177.64,177.59,45.36299866]
[1734917056905,1.5645,177.64,177.6,45.36299866]
[1734917057500,1.5645,177.64,177.62,45.36299866]
[1734917057812,9.849,177.69,177.62,45.36299866]
[1734917058113,9.849,177.69,177.64,45.36299866]
[1734917059390,7.8877,177.71,177.64,45.36299866]
[1734917059715,17.6219,177.77,177.7,45.36299866]
[1734917060008,7.7773,177.77,177.73,45.36299866]
[1734917061098,7.7773,177.77,177.71,45.36299866]
[1734917061421,7.7773,177.77,177.75,45.36299866]
[1734917061422,1.6209,177.77,177.75,45.36299866]
[1734917061617,6.6621,177.83,177.76,0.84363406]
[1734917061808,6.6621,177.83,177.79,45.36299866]
[1734917062185,1.5149,177.84,177.81,45.36299866]
[1734917062385,9.8385,177.88,177.81,45.36299866]
[1734917062615,9.8385,177.88,177.83,45.36299866]
[1734917062911,6.005,177.89,177.83,45.36299866]
[1734917062912,6.005,177.89,177.85,45.36299866]
[1734917063612,45.36299866,177.86,177.77,45.36299866]
[1734917063799,45.36299866,177.86,177.69,0.84314916]
[1734917063800,45.36299866,177.84,177.75,45.36299866]
[1734917064113,20.0,177.81,177.75,45.36299866]
[1734917064408,20.0,177.79,177.73,45.36299866]
[1734917064718,20.0,177.77,177.73,45.36299866]
[1734917064914,20.0,177.77,177.71,45.36299866]
[1734917065221,20.0,177.73,177.69,45.36299866]
[1734917065519,45.36299866,177.76,177.69,45.36299866]
[1734917065520,6.5517,177.76,177.69,45.36299866]
[1734917065825,6.5517,177.76,177.71,45.36299866]
[1734917066333,6.5517,177.76,177.73,45.36299866]
[1734917066614,1.5137,177.77,177.73,45.36299866]
[1734917066813,1.5137,177.77,177.75,45.36299866]
[1734917067603,9.8422,177.81,177.75,45.36299866]
[1734917068224,1.6453,177.83,177.8,45.36299866]
[1734917068398,1.6453,177.83,177.78,45.36299866]
[1734917069198,1.6453,177.83,177.76,50.50660014]
[1734917069522,9.8414,177.82,177.76,49.66299866]
[1734917069718,1.6453,177.83,177.78,45.36299866]
[1734917069927,1.6453,177.83,177.8,45.36299866]
[1734917070422,6.1373,177.88,177.82,45.36299866]
[1734917070621,6.1373,177.88,177.84,45.36299866]
[1734917070926,1.5971,177.89,177.84,45.36299866]
[1734917072315,15.9241,177.94,177.86,45.36299866]
[1734917072514,1.5429,177.95,177.92,45.36299866]
[1734917072829,1.5429,177.95,177.87,5.1429475]
[1734917072830,1.5429,177.95,177.9,45.36299866]
[1734917073124,1.5429,177.95,177.88,45.36299866]
[1734917073348,45.36299866,177.94,177.87,4.3]
[1734917073506,45.36299866,177.92,177.84,45.36299866]
[1734917073701,45.36299866,177.94,177.87,0.12549]
[1734917073916,11.3772,177.95,177.88,45.36299866]
[1734917074625,1.5429,177.95,177.92,45.36299866]
[1734917075331,1.5429,177.95,177.9,45.36299866]
[1734917076027,1.5429,177.95,177.91,0.84300423]
[1734917076337,1.5429,177.95,177.92,45.36299866]
[1734917078026,45.36299866,177.98,177.9,45.36299866]
[1734917078215,40.26655588,177.95,177.87,40.26655588]
[1734917078622,40.26655588,177.95,177.85,40.26655588]
[1734917078804,40.26655588,177.93,177.85,40.26655588]
[1734917079307,20.0,177.89,177.85,40.26655588]
[1734917080332,20.0,177.89,177.82,5.14272839]
[1734917080333,20.0,177.88,177.83,40.26655588]
[1734917081032,9.8378,177.89,177.83,40.26655588]
[1734917081229,21.5837,177.9,177.85,40.26655588]
[1734917081427,31.4208,177.9,177.85,40.26655588]
[1734917081616,20.0,177.88,177.83,40.26655588]
[1734917083382,1.5837,177.9,177.85,40.26655588]
[1734917083513,1.5837,177.9,177.87,40.26655588]
[1734917083719,1.5162,177.96,177.89,44.56655588]
[1734917083919,1.5162,177.96,177.93,44.56655588]
[1734917084133,6.1936,178.01,177.95,40.26655588]
[1734917084330,6.1936,178.01,177.97,40.26655588]
[1734917084839,1.5162,178.02,177.99,40.26655588]
[1734917085026,1.5162,178.02,177.97,4.3]
[1734917086140,20.0,178.01,177.97,44.56655588]
[1734917087980,29.8311,178.01,177.95,40.26655588]
[1734917088145,20.0,178.0,177.95,40.26655588]
[1734917088980,20.0,177.96,177.91,40.26655588]
[1734917089184,20.0,177.94,177.89,40.26655588]
[1734917089342,20.0,177.94,177.87,40.26655588]
[1734917089343,20.0,177.92,177.87,40.26655588]
[1734917089678,20.0,177.91,177.85,40.26655588]
[1734917090572,20.0,177.9,177.85,40.26655588]
[1734917090765,20.0,177.88,177.83,40.26655588]
[1734917091551,20.0,177.88,177.81,40.26655588]
[1734917091956,20.0,177.88,177.83,40.26655588]
[1734917092143,20.0,177.88,177.85,40.26655588]
[1734917092881,6.2032,177.94,177.87,40.26655588]
[1734917094174,20.0,177.91,177.87,40.26655588]
[1734917094854,9.8353,177.93,177.87,40.26655588]
[1734917095263,20.0,177.9,177.85,40.26655588]
[1734917095452,20.0,177.88,177.81,40.26655588]
[1734917095651,20.0,177.86,177.81,40.26655588]
[1734917096958,20.0,177.9,177.85,40.26655588]
[1734917097155,20.0,177.89,177.87,40.26655588]
[1734917097547,9.8361,177.92,177.85,40.26655588]
[1734917098284,40.26655588,177.89,177.81,40.26655588]
[1734917098567,40.26655588,177.91,177.83,40.26655588]
[1734917098762,9.8361,177.92,177.85,40.26655588]
[1734917099391,40.39204588,177.91,177.83,40.26655588]
[1734917099543,40.39204588,177.91,177.76,5.1432153]
[1734917099544,0.12549,177.88,177.81,40.26655588]